Workbook

Sheet Orçamento Final
B1: Campos editáveis
A2: 1 | B2: TIPO DE EVENTO......................
B4: NOME DO EVENTO:
B5: UR QUE REALIZARÁ O EVENTO:
A7: 0 | B7: TOTAL DE VAGAS
B9: RECEITAS | D9: Qtde. | E9: Valor | F9: Valor
D10: Inscritos | E10: Inscrição | F10: Total-R$
B11: Com inscrições
B12: Acadêmicos | D12: =ROUND(G12,0) -> 0 | F12: =((E12+E13+E14)/H12)*D12 ->  | G12: =D7*65% -> 0 | H12: =COUNT(E12:E14) -> 0
B13: Acadêmicos Externos
B14: Outros
B15: Egressos
B16: Bolsa egresso | D16: =ROUND(G16,0) -> 0 | E16: =E15*75% -> 0 | F16: =(D16*E16) -> 0 | G16: =D7*25% -> 0
B17: Professores
B18: Funcionários
B19: Bolsa funcionário | D19: =ROUND(G19,0) -> 0 | E19: =(E18*50%) -> 0 | F19: =((E19+E20+E21+E22)/I21*D19) ->  | G19: =D7*10% -> 0 | H19: =COUNT(E19:E22) -> 4
B20: Bolsa professores | E20: =(E17*50%) -> 0 | I20: =COUNTIFS(E19:E22,0) -> 4
B21: Bolsa dependentes externos | E21: =(E14*50%) -> 0 | I21: =H19-I20 -> 0
B22: Bolsa alunos dependentes | E22: =(E12*50%) -> 0
B23: RECEITAS TOTAIS DO PROJETO/EVENTO | D23: =G12+G13+G14+G16+G19+G20+G21+G22 -> 0 | F23: =F12+F16+F19 -> 
B25: PERCENTUAIS VARIÁVEIS AO CUSTO | E25: % | F25: R$
B26: Taxa administração................................................... | D26: [Percentual] | E26: 0.1 | F26: =F23*E26 -> 
B27: Contribuição para Custos Fixos.................................................................................... | D27: [Percentual] | E27: 0.1 | F27: =F23*E27 -> 
E29: =SUM(E26:E28) -> 0.2 | F29: =SUM(F26:F28) -> 
B31: CONTRA PARTIDA APOIO EVENTO | D31: UR: | E31: 51.10.05.04.2001 | F31: =SUM('Outros Gastos'!E7:E10) -> 0
B33: VERBAS DA FAPESC / SUBVENÇÕES....................................................................... | F33: 0
B34: DOAÇÕES.................................................................................................................... | F34: 0
B35: CONTRA PARTIDA | D35: UR: | F35: 0
B36: CONTRA PARTIDA | D36: UR: | F36: 0
B37: CONTRA PARTIDA | D37: UR: | F37: 0
B39: RECEITA LIQUIDA DO PROJETO/EVENTO.................................................................... | F39: =(F23-F29)+F33+F34+F35+F36+F37 -> 
A41: FALSE | B41: RECEITAS | D41: Qtde | E41: Valor | F41: Valor
D42: Inscritos | E42: Inscrição | F42: Total-R$
B43: Com inscrições
B44: Acadêmicos | E44: 0 | F44: =D44*E44 -> 0
B45: Acadêmicos Externos | F45: =D45*E45 -> 0
B46: Professores | F46: 0
B47: Funcionários | F47: 0
B48: Outros | F48: 0
B49: RECEITAS/QTDES TOTAIS | D49: =SUM(D43:D48) -> 0 | F49: =SUM(F44:F48) -> 0
B51: PERCENTUAIS VARIÁVEIS AO CUSTO | E51: % | F51: R$
B52: Taxa administração................................................... | D52: [Percentual] | E52: 0.1 | F52: =F49*E52 -> 0
B53: Contribuição para Custos Fixos.................................................................................... | D53: [Percentual] | E53: 0.1 | F53: =F49*E53 -> 0
E55: =SUM(E52:E54) -> 0.2 | F55: =SUM(F52:F54) -> 0
B57: CONTRA PARTIDA APOIO EVENTO | D57: UR: | E57: 51.10.05.04.1001 | F57: ='Outros Gastos'!E11 -> 0
B59: VERBAS DA FAPESC / SUBVENÇÕES....................................................................... | F59: 0
B60: DOAÇÕES.................................................................................................................... | F60: 0
B61: CONTRA PARTIDA | D61: UR: | F61: 0
B62: CONTRA PARTIDA | D62: UR: | F62: 0
B63: CONTRA PARTIDA | D63: UR: | F63: 0
B65: RECEITA LIQUIDA DO PROJETO/EVENTO.................................................................... | F65: =(F49-F55)+F59+F60+F61+F62+F63 -> 0
B67: DESPESAS COM PESSOAL
B68: Com Pessoal UNIVALI
B69: Horas-aula Professores................................................................. | E69: =SUM('Custos Pessoal'!H18:H30) -> 0
B70: Horas-aula Coordenador............................................................... | E70: =SUM('Custos Pessoal'!H60:H61) -> 0
B71: Horas Funcionários........................................................................... | E71: =SUM('Custos Pessoal'!H34:H38) -> 0
B72: 13o. Salário...................................................................................... | E72: =(N(E69)+N(E70)+N(E71))/12 -> 0
B73: Férias + 1/3 Férias.............................................................................. | E73: =(N(E69)+N(E70)+N(E71))/12+(E72/3) -> 0
B74: UNIPREV - 8,5%................................................................................... | E74: =($E$69+$E$70+$E$71+$E$72+$E$73)*0.085 -> 0
B75: FGTS - 8,5%............................................................................................ | E75: =($E$69+$E$70+$E$71+$E$72+$E$73)*0.085 -> 0
B76: PIS - 1%.................................................................................................. | E76: =($E$69+$E$70+$E$71+$E$72+$E$73)*0.01 -> 0
B77: Transporte/Passagens........................................................................ | E77: =SUM('Custos Pessoal'!N18:N38) -> 0
B78: Hospedagem......................................................................................... | E78: =SUM('Custos Pessoal'!Q18:Q38) -> 0
B79: Diárias/Alimentação..................................................................... | E79: =SUM('Custos Pessoal'!T18:T38) -> 0
B80: Outras Despesas........................................................................... | E80: 0
B81: Total de despesas com pessoal UNIVALI.................................................................... | F81: =SUM(E69:E80) -> 0
B82: Com Pessoal Outras Universidades
B83: Terceiros PF (valor para emissão de NFS)............................................................................................... | E83: ='Cálculo PF e PJ'!D9 -> 0
B84: Terceiros PJ..................................................................................... | E84: =SUM('Custos Pessoal'!H51:I55) -> 0
B85: Transporte/Passagens......................................................................... | E85: =SUM('Custos Pessoal'!N42:N55) -> 0
B86: Hospedagem.............................................................................................. | E86: =SUM('Custos Pessoal'!Q42:Q55) -> 0
B87: Diárias/Alimentação...................................................................... | E87: =SUM('Custos Pessoal'!T42:T55) -> 0
B88: Outras Despesas........................................................................... | E88: 0
B89: Total de despesas c/ pessoal outras Universidades..................................................... | F89: =SUM(E83:E88) -> 0
B90: Total de despesas com pessoal........................................................................................ | F90: =F81+F89 -> 0
B92: OUTRAS DESPESAS E INVESTIMENTOS
B93: Tarifas Bancárias............................................................................... | C93: (valor de 1,60 por boleto) | F93: 0
B94: Tarifas Cartão....................................... | C94: (valor de 2,5 % sobre receita faturada) | F94: 0
B95: Alugueis, uso de salas/equip......................................................................................................................... | C95: Preencher Planilha anexa 1 | F95: 0
B96: Material de Consumo.............................................................................................. | C96: Preencher Planilha Outros Gastos | F96: ='Outros Gastos'!E40 -> 0
B97: Outras Despesas (Informar)................................................................................
B98: Total de outras despesas e Investimentos.......................................................... | F98: =SUM(F93:F97) -> 0
B100: TOTAL DE DESPESAS DIRETAS DO PROJETO/EVENTO........................................................................ | F100: =F90+F98 -> 0
B102: DÉFICIT OU SUPERÁVIT | F102: =F39-F100 ->  | I102: Curso
B103: DÉFICIT OU SUPERÁVIT | F103: =F65-F100 -> 0 | I103: Evento
B105: Valor a ser transferido para o OBC/Compras ................................. | F105: =E77+E78+E79+F89+F96+F97+E80 -> 0
B106: Valor a ser transferido por Realiza Valor OBC................................... | F106: =E69+E70+E71+E76+E75+E74+E73+E72 -> 0
B108: TOTAL A SER TRANSFERIDO PARA O OBC ................................................................... | F108: =F105+F106 -> 0

Sheet Custos Pessoal
D2: Campos editáveis
A5: HORA/AULA PROFESSORES | B5: 2021 | G5: Valor por refeição | L5: 45
A6: Plano Antigo-Especialista-A1 | B6: =IF(A6="","",VLOOKUP(A6,'Valor Hora'!$A$2:$J$41,10,FALSE)) -> 42.52 | G6: Valor de quilometragem - consultar planilha Km por percurso
B7: =IF(A7="","",VLOOKUP(A7,'Valor Hora'!$A$2:$J$41,10,FALSE)) -> 
B8: =IF(A8="","",VLOOKUP(A8,'Valor Hora'!$A$2:$J$41,10,FALSE)) -> 
B9: =IF(A9="","",VLOOKUP(A9,'Valor Hora'!$A$2:$J$41,10,FALSE)) ->  | I9: DURAÇÃO DO PROJETO: | K9: MESES
C14: CUSTO COM PESSOAL | J14: AUXÍLIO TRANSPORTE/PASSAGENS | O14: HOSPEDAGENS | R14: DIÁRIAS/ALIMENTAÇÃO | U14: Total Geral-R$
A15: NOME / FUNÇÃO | D15: Qtde C/H | E15: Vlr. h/a | F15: Salário | G15: Total | H15: Pagamento Bruto | I15: Valor descontado no projeto | J15: Nº de | K15: Tipo | L15: Trecho | M15: Preço unitário | N15: Total-R$ | O15: Qtde. | P15: Preço | Q15: Total-R$ | R15: Qtde. | S15: Preço | T15: Total-R$
E16: R$ | F16: Base Mês | G16: Meses | J16: Viagens | P16: Unitário-R$ | S16: Unitário-R$
A17: PROFESSORES (UNIVALI) | H17: =IF(OR(ISBLANK(J17),ISTEXT(J17)),"",J17*#REF!) -> 
B18: 1 | F18: =D18*E18 -> 0 | H18: =F18*G18 -> 0 | I18: ='Cálculo PF e PJ'!I3 -> 0 | N18: =J18*M18 -> 0 | Q18: =O18*P18 -> 0 | T18: =R18*S18 -> 0 | U18: =H18+N18+Q18+T18 -> 0
F19: =D19*E19 -> 0 | H19: =F19*G19 -> 0 | I19: ='Cálculo PF e PJ'!I4 -> 0 | N19: =J19*M19 -> 0 | Q19: 0 | T19: 0 | U19: 0
F20: 0 | H20: 0 | I20: ='Cálculo PF e PJ'!I5 -> 0 | N20: 0 | Q20: 0 | T20: 0 | U20: 0
F21: 0 | H21: 0 | I21: ='Cálculo PF e PJ'!I6 -> 0 | N21: 0 | Q21: 0 | T21: 0 | U21: 0
F22: 0 | H22: 0 | I22: ='Cálculo PF e PJ'!I7 -> 0 | N22: 0 | Q22: 0 | T22: 0 | U22: 0
F23: 0 | H23: 0 | I23: ='Cálculo PF e PJ'!I8 -> 0 | N23: 0 | Q23: 0 | T23: 0 | U23: 0
F24: 0 | H24: 0 | I24: ='Cálculo PF e PJ'!I9 -> 0 | N24: 0 | Q24: 0 | T24: 0 | U24: 0
F25: 0 | H25: 0 | I25: ='Cálculo PF e PJ'!I10 -> 0 | N25: 0 | Q25: 0 | T25: 0 | U25: 0
F26: 0 | H26: 0 | I26: ='Cálculo PF e PJ'!I11 -> 0 | N26: 0 | Q26: 0 | T26: 0 | U26: 0
F27: 0 | H27: 0 | I27: ='Cálculo PF e PJ'!I12 -> 0 | N27: 0 | Q27: 0 | T27: 0 | U27: 0
F28: 0 | H28: 0 | I28: ='Cálculo PF e PJ'!I13 -> 0 | N28: 0 | Q28: 0 | T28: 0 | U28: 0
F29: 0 | H29: 0 | I29: ='Cálculo PF e PJ'!I14 -> 0 | N29: 0 | Q29: 0 | T29: 0 | U29: 0
F30: 0 | H30: 0 | I30: ='Cálculo PF e PJ'!I15 -> 0 | N30: 0 | Q30: 0 | T30: 0 | U30: 0
A31: FUNCIONÁRIOS (UNIVALI) | D31: C/H | E31: Vlr. h/a | F31: Salário | G31: Meses | H31: Pagamento Bruto | I31: Valor descontado no projeto | J31: AUXÍLIO TRANSPORTE/PASSAGENS | O31: HOSPEDAGENS | R31: DIÁRIAS/ALIMENTAÇÃO | U31: Total Geral-R$
J32: Nº de | K32: Tipo | L32: Trecho | M32: Preço unitário | N32: Total-R$ | O32: Qtde. | P32: Preço | Q32: Total-R$ | R32: Qtde. | S32: Preço | T32: Total-R$
J33: Viagens | P33: Unitário-R$ | S33: Unitário-R$
B34: 2 | F34: =D34*E34 -> 0 | H34: =F34*G34 -> 0 | I34: ='Cálculo PF e PJ'!I25 -> 0 | N34: =J34*M34 -> 0 | Q34: =O34*P34 -> 0 | T34: =R34*S34 -> 0 | U34: =H34+N34+Q34+T34 -> 0
F35: =D35*E35 -> 0 | H35: =F35*G35 -> 0 | I35: ='Cálculo PF e PJ'!I26 -> 0 | N35: 0 | Q35: =O35*P35 -> 0 | T35: =R35*S35 -> 0 | U35: =H35+N35+Q35+T35 -> 0
F36: 0 | H36: =F36*G36 -> 0 | I36: ='Cálculo PF e PJ'!I27 -> 0 | N36: 0 | Q36: 0 | T36: 0 | U36: =H36+N36+Q36+T36 -> 0
F37: 0 | H37: =F37*G37 -> 0 | I37: ='Cálculo PF e PJ'!I28 -> 0 | N37: 0 | Q37: 0 | T37: 0 | U37: =H37+N37+Q37+T37 -> 0
F38: 0 | H38: =F38*G38 -> 0 | I38: ='Cálculo PF e PJ'!I29 -> 0 | N38: 0 | Q38: 0 | T38: 0 | U38: =H38+N38+Q38+T38 -> 0
A39: TERCEIROS (EXTERNOS) PF | D39: C/H | E39: Vlr. h/a | F39: Salário | G39: Meses | H39: Pagamento Líquido (Sem encargos) | I39: Pagamento Bruto (Para emissão de NFS) | J39: AUXÍLIO TRANSPORTE/PASSAGENS | O39: HOSPEDAGENS | R39: DIÁRIAS/ALIMENTAÇÃO | U39: Total Geral-R$
J40: Nº de | K40: Tipo | L40: Trecho | M40: Preço unitário | N40: Total-R$ | O40: Qtde. | P40: Preço | Q40: Total-R$ | R40: Qtde. | S40: Preço | T40: Total-R$
J41: Viagens | P41: Unitário-R$ | S41: Unitário-R$
B42: 3 | F42: =D42*E42 -> 0 | H42: =F42*G42 -> 0 | I42: ='Cálculo PF e PJ'!D3 -> 0 | N42: =J42*M42 -> 0 | P42: 100 | Q42: 0 | T42: 0 | U42: =H42+N42+Q42+T42 -> 0
F43: 0 | H43: =F43*G43 -> 0 | I43: ='Cálculo PF e PJ'!D4 -> 0 | N43: 0 | Q43: 0 | T43: 0 | U43: =H43+N43+Q43+T43 -> 0
F44: 0 | H44: =F44*G44 -> 0 | I44: ='Cálculo PF e PJ'!D5 -> 0 | N44: 0 | Q44: 0 | T44: 0 | U44: =H44+N44+Q44+T44 -> 0
F45: 0 | H45: =F45*G45 -> 0 | I45: ='Cálculo PF e PJ'!D6 -> 0 | N45: 0 | Q45: 0 | T45: 0 | U45: =H45+N45+Q45+T45 -> 0
F46: 0 | H46: 0 | I46: ='Cálculo PF e PJ'!D7 -> 0 | N46: 0 | Q46: 0 | T46: 0 | U46: 0
F47: 0 | H47: =F47*G47 -> 0 | I47: ='Cálculo PF e PJ'!D8 -> 0 | N47: 0 | Q47: 0 | T47: 0 | U47: =H47+N47+Q47+T47 -> 0
A48: TERCEIROS (EXTERNOS) PJ | D48: C/H | E48: Vlr. h/a | F48: Salário | G48: Meses | H48: Pagamento Bruto (Para emissão de NFS) | J48: AUXÍLIO TRANSPORTE/PASSAGENS | O48: HOSPEDAGENS | R48: DIÁRIAS/ALIMENTAÇÃO | U48: Total Geral-R$
J49: Nº de | K49: Tipo | L49: Trecho | M49: Preço unitário | N49: Total-R$ | O49: Qtde. | P49: Preço | Q49: Total-R$ | R49: Qtde. | S49: Preço | T49: Total-R$
J50: Viagens | P50: Unitário-R$ | S50: Unitário-R$
F51: =D51*E51 -> 0 | H51: =F51*G51 -> 0 | N51: =J51*M51 -> 0 | Q51: 0 | T51: 0 | U51: =H51+N51+Q51+T51 -> 0
F52: 0 | H52: =F52*G52 -> 0 | N52: 0 | Q52: 0 | T52: 0 | U52: =H52+N52+Q52+T52 -> 0
F53: 0 | H53: =F53*G53 -> 0 | N53: 0 | Q53: 0 | T53: 0 | U53: 0
F54: 0 | H54: 0 | N54: 0 | Q54: 0 | T54: 0 | U54: 0
F55: 0 | H55: 0 | N55: 0 | Q55: 0 | T55: 0 | U55: =H55+N55+Q55+T55 -> 0
A56: TOTAIS | H56: =SUM(H17:H47)+SUM(H51:I55) -> 0 | I56: =H51+H54+H55 -> 0 | J56: =IF(SUM(J17:J55)=0,"",SUM(J17:J55)) ->  | N56: =IF(SUM(N17:N55)=0,0,SUM(N17:N55)) -> 0 | O56: =IF(SUM(O17:O55)=0,"",SUM(O17:O55)) ->  | Q56: =IF(SUM(Q17:Q55)=0,0,SUM(Q17:Q55)) -> 0 | R56: =IF(SUM(R17:R55)=0,"",SUM(R17:R55)) ->  | T56: =IF(SUM(T17:T55)=0,0,SUM(T17:T55)) -> 0 | U56: =SUM(U18:U55) -> 0
A58: 2. Custos com Coordenador Interno
A59: COORDENADOR INTERNO | D59: Qtde C/H | E59: Vlr. Hora | F59: Salário Base mês | G59: Total Meses | H59: Pagamento Bruto | I59: Valor descontado no projeto
F60: =D60*E60 -> 0 | H60: =F60*G60 -> 0 | I60: ='Cálculo PF e PJ'!M3 -> 0 | N60: =J60*M60 -> 0 | Q60: =IF(OR(ISBLANK(O60),ISTEXT(O60)),0,O60*P60) -> 0 | T60: =IF(OR(ISBLANK(R60),ISTEXT(R60)),0,R60*S60) -> 0 | U60: =H60+N60+Q60+T60 -> 0
F61: =D61*E61 -> 0 | H61: =F61*G61 -> 0 | I61: ='Cálculo PF e PJ'!M4 -> 0 | N61: 0 | Q61: =IF(OR(ISBLANK(O61),ISTEXT(O61)),0,O61*P61) -> 0 | T61: =IF(OR(ISBLANK(R61),ISTEXT(R61)),0,R61*S61) -> 0 | U61: =H61+N61+Q61+T61 -> 0
A62: TOTAIS | H62: =SUM(H60:H61) -> 0 | I62: =SUM(I60:I61) -> 0 | J62: =IF(SUM(J60:J61)=0,"",SUM(J60:J61)) ->  | N62: =SUM(N60:N61) -> 0 | O62: =IF(SUM(O60:O61)=0,"",SUM(O60:O61)) ->  | Q62: =IF(SUM(Q60:Q61)=0,0,SUM(Q60:Q61)) -> 0 | R62: =IF(SUM(R60:R61)=0,"",SUM(R60:R61)) ->  | T62: =IF(SUM(T60:T61)=0,0,SUM(T60:T61)) -> 0 | U62: =SUM(U60:U61) -> 0
A63: TOTAL GERAL CUSTOS COM PESSOAL | H63: =H62+H56 -> 0 | N63: =N62+N56 -> 0 | Q63: =Q62+Q56 -> 0 | T63: =T62+T56 -> 0 | U63: =U62+U56 -> 0

Sheet Outros Gastos
B2: Campos editáveis
B4: CERTIFICADOS E MATERIAIS DE CONSUMO
B6: MATERIAL DE CONSUMO (Apoio Institucional): | C6: Quantidade | D6: Valor Unitário | E6: Total
B7: Certificados impressos | D7: 5 | E7: =C7*D7 -> 0
B8: Certificados online | D8: 3 | E8: 0
B9: Sistema Elis (inscrições on-line - CURSOS) | D9: =IF('Orçamento Final'!$D$23<=0,0,IF(AND('Orçamento Final'!$D$23>=1,'Orçamento Final'!$D$23<=100),500,IF('Orçamento Final'!$D$23<=500,1000,IF('Orçamento Final'!$D$23<=1000,1500,IF('Orçamento Final'!$D$23>1000,2000,0))))) -> 0 | E9: =D9 -> 0
B10: Sistema Elis (inscrições on-line - EVENTOS) | D10: =IF('Orçamento Final'!$D$49<=0,0,IF(AND('Orçamento Final'!$D$49>=1,'Orçamento Final'!$D$49<=100),500,IF('Orçamento Final'!$D$49<=500,1000,IF('Orçamento Final'!$D$49<=1000,1500,IF('Orçamento Final'!$D$49>1000,2000,0))))) -> 0 | E10: =D10 -> 0
B11: TOTAL APOIO INSTITUCIONAL | E11: =SUM(E7:E10) -> 0
B14: Material de Consumo | C14: Quantidade | D14: Valor Unitário | E14: Total
E15: =C15*D15 -> 0
E16: 0
E17: 0
E18: 0
E19: 0
E20: 0
E21: 0
E22: 0
E23: 0
E24: 0
E25: 0
E26: 0
E27: 0
E28: 0
E29: 0
E30: 0
E31: 0
E32: 0
E33: 0
E34: 0
E35: 0
E36: 0
E37: 0
E38: 0
E39: 0
B40: TOTAL MATERIAL DE CONSUMO | E40: =SUM(E15:E39) -> 0
B43: Valores atualizados Coffee Break 2021 (Validar as informações com o Compras)
B45: Serviço buffet
B47: Tipo 01
B48: 6.5
B49: 01 mini salgado assado
B50: 01 doce simples
B51: café preto
B52: leite
B53: Descartáveis
B55: Tipo 02
B56: R$ 10.25
B57: 03 tipos de salgados assados
B58: 01 fatia de bolo com cobertura
B59: 01 doce simples
B60: café preto
B61: leite
B62: suco ou refri
B63: Descartáveis
B65: Tipo 03
B66: 11.65
B67: 02 tipos de salgados assados
B68: 01 mini lanche
B69: 01 Croissant doce
B70: 01 doce simples
B71: café preto
B72: leite
B73: suco ou refri
B74: Descartáveis
B76: Tipo 04
B77: 13.85
B78: 03 tipos de salgados assados
B79: 02 mini lanche
B80: 01 Croissant doce
B81: 01 doce simples
B82: café preto
B83: leite
B84: suco ou refri
B85: Descartáveis
B87: Tipo 05
B88: 17.65
B89: 03 tipos de salgados assados
B90: 02 mini lanche
B91: 01 Croissant doce
B92: 01 doce simples
B93: 01 salada de frutas
B94: café preto
B95: leite
B96: suco ou refri
B97: Descartáveis
B99: Tipo 06
B100: 22.25
B101: 05 tipos de salgados assados
B102: 02 mini lanche
B103: 02 empadinha ou mini quiche
B104: 01 Croissant doce
B105: 01 Mini doce
B106: 01 doce simples
B107: café preto
B108: leite
B109: suco ou refri
B110: Descartáveis
B112: Tipo 07
B113: R$ 26.15
B114: 05 tipos de salgados assados
B115: 02 mini lanche
B116: 02 empadinha ou mini quiche
B117: 01 Croissant doce
B118: 01 Mini doce
B119: 01 doce simples
B120: 01 mini salada de frutas
B121: café preto
B122: leite
B123: suco ou refri
B124: Descartáveis

Sheet Orientações de Preenchimento
A1: ABA – ORÇAMENTO FINAL | C1: ABA – CUSTOS PESSOAL | E1: ABA – OUTROS GASTOS
A2: Tipo de Evento: Selecionar uma das opções (Curso ou Evento) | C2: Nesta aba devem ser informadas todas as despesas relacionadas aos pagamentos de honorários, deslocamentos, passagem aérea, hospedagens e diárias de alimentação. | E2: Itens à serem preenchidos:
A3: Nome o Evento: | C3: Itens à serem preenchidos: | E3: No item MATERIAL DE CONSUMO (APOIO INSTITUCIONAL) em Certificados On-Line: informar a quantidade de certificados à serem emitidos, normalmente é equivalente a quantidade de inscritos + o número de pessoas envolvidas nas comissões. O valor calculado nesse campo, será direcionado automaticamente para a aba Orçamento Final, no item Contrapartida Apoio Evento.
A4: UR que realizará o evento: | C4: Duração do Projeto: Informar a quantidade total de meses referente a duração do projeto | E4: Obs.: esse valor não contabiliza no total de despesas do projeto, pois é custeado pela Coordenação de Eventos.
A6: Total de vagas: informar a quantidade de vagas para viabilidade do curso/evento | C6: No item CUSTO PESSOA, inserir as seguintes informações: | E6: No item MATERIAL DE CONSUMO, informar as necessidades de compras ou solicitações de suprimentos para o evento/curso, com por exemplo:
A7: No item Receitas: preencher os campos editáveis (em azul) | C7: Nome/Função: Inserir o nome do professor/funcionário e/ou Externos PF/PJ (Pessoa Física | Pessoa Jurídica) | E7: Material Gráfico, brindes, decoração, material de expediente, contratação de transportes (para visitas técnicas), etc, todo e qualquer material de apoio de acordo com as necessidades para realização da proposta do projeto.
A8: Caso haja alguma receita de apoio, preencher uma das opções: verbas, doações ou UR de Contrapartida. No caso da opção UR de Contrapartida é necessário informar de qual UR sairá o recurso. | C8: Quantidade C/H: Informar a quantidade de horas relacionadas à atividade dentro do projeto | E8: É importante que todos os itens necessários para realização do evento/curso estejam elencados nesse item, pois somente os itens previstos na planilha poderão ser comprados de acordo com a receita do evento/curso.
A9: Os demais Itens dessa planilha não devem ser preenchidos. | C9: Valor h/a R$: Inserir o valor da hora/aula do de acordo com o enquadramento (isso para professores com vínculo e funcionários) | E9: Em relação ao valor unitário dos itens descritos, sugerimos que seja consultado o setor de compras, para verificar se eles possuem essa informação ou ainda, uma consulta prévia na internet, essa última opção é a mais adotada pelos responsáveis dos projetos.
C10: Total de meses: Informar o total de meses que receberá esses pagamentos | E10: Ao preencher todas essas informações, é importante retornar à aba – Orçamento Final e consulta a linha da planilha referente ao Déficit ou Superávit do projeto. O projeto sempre deverá apresentar um saldo positivo (Superávit). Caso apresente um saldo negativo (Déficit), a sugestão é ajustar os valores das inscrições ou rever as despesas elencadas.
C12: No item AUXÍLIO TRANSPORTE/PASSAGEM, inserir as seguintes informações:
C13: Nº de Viagens: Informar a quantidade de deslocamentos Tipo: informar a modalidade – aéreo, rodoviário, carro Preço unitário: para a modalidade aéreo e rodoviária fazer uma pesquisa de preço nas agências de competência e para os deslocamentos na modalidade “carro” considerar a Determinação vigente na Universidade.
C15: No item HOSPEDAGEM, inserir as seguintes informações:
C16: Quantidade: informar a quantidade de diárias
C17: Preço Unitário: consultar com o setor de compras, os hotéis conveniados e os preços vigentes
C19: No item DIÁRIAS/ALIMENTAÇÃO, inserir as seguintes informações:
C20: Quantidade: informar a quantidade de diárias de alimentação
C21: Preço unitário: considerar o valor por refeição de acordo com a Determinação vigente na Universidade.

Sheet Km por percurso (hidden)
A1: VALOR LITRO | B1: 3.2
A2: LOCALIDADES | C2: KM | D2: KM PAGA | E2: VALORES PAGOS
A3: PROCEDÊNCIA | B3: DESTINO
A4: Angelina | B4: Santo Amaro | C4: 80 | D4: =C4*0.11 -> 8.8 | E4: =D4*$B$1 -> 28.16
A5: Angelina | B5: Taquaras | C5: 290 | D5: 31.9 | E5: 102.08
A6: Balneário Camboriú | B6: Porto Belo | C6: 60 | D6: 6.6 | E6: 21.12
A7: Balneário Camboriú | B7: Nova Trento | C7: 63 | D7: 6.93 | E7: 22.176
A8: Balneário Camboriú | B8: Piçarras | C8: 77 | D8: 8.47 | E8: 27.104
A9: Balneário Camboriú | B9: Brusque | C9: 102 | D9: 11.22 | E9: 35.904
A10: Balneário Camboriú | B10: Bombinhas | C10: 110 | D10: 12.1 | E10: 38.72
A11: Balneário Camboriú | B11: Gaspar | C11: 122 | D11: 13.42 | E11: 42.944
A12: Balneário Camboriú | B12: Biguaçu | C12: 125 | D12: 13.75 | E12: 44
A13: Balneário Camboriú | B13: Blumenau | C13: 144 | D13: 15.84 | E13: 50.688
A14: Balneário Camboriú | B14: São José | C14: 156 | D14: 17.16 | E14: 54.912
A15: Balneário Camboriú | B15: Florianópolis | C15: 166 | D15: 18.26 | E15: 58.432
A16: Balneário Camboriú | B16: Rio dos Cedros | C16: 198 | D16: 21.78 | E16: 69.696
A17: Balneário Camboriú | B17: São Francisco | C17: 214 | D17: 23.54 | E17: 75.328
A18: Balneário Camboriú | B18: Joinville | C18: 229 | D18: 25.19 | E18: 80.608
A19: Balneário Camboriú | B19: Santo Amaro | C19: 230 | D19: 25.3 | E19: 80.96
A20: Balneário Camboriú | B20: Jaraguá do Sul | C20: 276 | D20: 30.36 | E20: 97.152
A21: Balneário Camboriú | B21: Tubarão | C21: 365 | D21: 40.15 | E21: 128.48
A22: Balneário Camboriú | B22: Curitiba | C22: 400 | D22: 44 | E22: 140.8
A23: Balneário Camboriú | B23: Criciúma | C23: 465 | D23: 51.15 | E23: 163.68
A24: Balneário Camboriú | B24: Joaçaba | C24: 675 | D24: 74.25 | E24: 237.6
A25: Balneário Camboriú | B25: Chapecó | C25: 1200 | D25: 132 | E25: 422.4
A26: Balneário Camboriú | B26: Porto Alegre | C26: 1240 | D26: 136.4 | E26: 436.48
A27: Balneário Camboriú | B27: Lodrina | C27: 1280 | D27: 140.8 | E27: 450.56
A28: Biguaçu | B28: Gov. Celso Ramos | C28: 60 | D28: 6.6 | E28: 21.12
A29: Biguaçu | B29: Itapema | C29: 76 | D29: 8.36 | E29: 26.752
A30: Biguaçu | B30: Tijucas | C30: 76 | D30: 8.36 | E30: 26.752
A31: Biguaçu | B31: Santo Amaro | C31: 84 | D31: 9.24 | E31: 29.568
A32: Biguaçu | B32: Porto Belo | C32: 96 | D32: 10.56 | E32: 33.792
A33: Biguaçu | B33: Imbituba | C33: 123 | D33: 13.53 | E33: 43.296
A34: Biguaçu | B34: São João Batista | C34: 128 | D34: 14.08 | E34: 45.056
A35: Biguaçu | B35: Navegantes | C35: 156 | D35: 17.16 | E35: 54.912
A36: Biguaçu | B36: Angelina | C36: 164 | D36: =C36*0.11 -> 18.04 | E36: =D36*$B$1 -> 57.728
A37: Biguaçu | B37: Penha | C37: 190 | D37: 20.9 | E37: 66.88
A38: Biguaçu | B38: Piçarras | C38: 202 | D38: 22.22 | E38: 71.104
A39: Biguaçu | B39: Barra Velha | C39: 220 | D39: 24.2 | E39: 77.44
A40: Biguaçu | B40: Brusque | C40: 228 | D40: 25.08 | E40: 80.256
A41: Biguaçu | B41: Tubarão | C41: 240 | D41: 26.4 | E41: 84.48
A42: Biguaçu | B42: Blumenau | C42: 260 | D42: 28.6 | E42: 91.52
A43: Biguaçu | B43: Criciúma | C43: 340 | D43: 37.4 | E43: 119.68
A44: Biguaçu | B44: Joinville | C44: 354 | D44: 38.94 | E44: 124.608
A45: Biguaçu | B45: Arroio Silva | C45: 400 | D45: 44 | E45: 140.8
A46: Biguaçu | B46: Lages | C46: 440 | D46: 48.4 | E46: 154.88
A47: Biguaçu | B47: Curitiba | C47: 526 | D47: 57.86 | E47: 185.152
A48: Blumenau | B48: Jaraguá do Sul | C48: 130 | D48: 14.3 | E48: 45.76
A49: Blumenau | B49: São João Batista | C49: 270 | D49: 29.7 | E49: 95.04
A50: Blumenau | B50: São José | C50: 298 | D50: 32.78 | E50: 104.896
A51: Bombinhas | B51: Florianópolis | C51: 124 | D51: 13.64 | E51: 43.648
A52: Camboriú | B52: Piçarras | C52: 82 | D52: 9.02 | E52: 28.864
A53: Camboriú | B53: São José | C53: 148 | D53: 16.28 | E53: 52.096
A54: Camboriú | B54: Curitiba | C54: 448 | D54: 49.28 | E54: 157.696
A55: Florianópolis | B55: Gov. Celso Ramos | C55: 90 | D55: 9.9 | E55: 31.68
A56: Florianópolis | B56: Santo Amaro | C56: 114 | D56: 12.54 | E56: 40.128
A57: Florianópolis | B57: Nova Trento | C57: 120 | D57: 13.2 | E57: 42.24
A58: Florianópolis | B58: São João Batista | C58: 168 | D58: 18.48 | E58: 59.136
A59: Florianópolis | B59: Angelina | C59: 194 | D59: 21.34 | E59: 68.288
A60: Florianópolis | B60: São Francisco do Sul | C60: 398 | D60: 43.78 | E60: 140.096
A61: Ilhota | B61: Piçarras | C61: 106 | D61: 11.66 | E61: 37.312
A62: Itajaí | B62: Balneário Camboriú | C62: 22 | D62: 2.42 | E62: 7.744
A63: Itajaí | B63: Penha | C63: 26.5 | D63: 2.915 | E63: 9.328
A64: Itajaí | B64: Navegantes | C64: 40 | D64: 4.4 | E64: 14.08
A65: Itajaí | B65: Piçarras | C65: 46 | D65: 5.06 | E65: 16.192
A66: Itajaí | B66: Ilhota | C66: 60 | D66: 6.6 | E66: 21.12
A67: Itajaí | B67: Itapema | C67: 60 | D67: 6.6 | E67: 21.12
A68: Itajaí | B68: Nova Trento | C68: 60 | D68: =C68*0.11 -> 6.6 | E68: =D68*$B$1 -> 21.12
A69: Itajaí | B69: Gov. Celso Ramos | C69: 60 | D69: 6.6 | E69: 21.12
A70: Itajaí | B70: Barra Velha | C70: 64 | D70: 7.04 | E70: 22.528
A71: Itajaí | B71: Porto Belo | C71: 70 | D71: 7.7 | E71: 24.64
A72: Itajaí | B72: Bombinhas | C72: 72 | D72: 7.92 | E72: 25.344
A73: Itajaí | B73: Botuverá | C73: 72 | D73: 7.92 | E73: 25.344
A74: Itajaí | B74: Brusque | C74: 72 | D74: 7.92 | E74: 25.344
A75: Itajaí | B75: Tijucas | C75: 80 | D75: 8.8 | E75: 28.16
A76: Itajaí | B76: Gaspar | C76: 92 | D76: 10.12 | E76: 32.384
A77: Itajaí | B77: Blumenau | C77: 114 | D77: 12.54 | E77: 40.128
A78: Itajaí | B78: Luiz Alves | C78: 114 | D78: 12.54 | E78: 40.128
A79: Itajaí | B79: Canelinha | C79: 120 | D79: 13.2 | E79: 42.24
A80: Itajaí | B80: Guaramirim | C80: 120 | D80: 13.2 | E80: 42.24
A81: Itajaí | B81: Ascurra | C81: 140 | D81: 15.4 | E81: 49.28
A82: Itajaí | B82: Guabiruba | C82: 150 | D82: 16.5 | E82: 52.8
A83: Itajaí | B83: Indaial | C83: 150 | D83: 16.5 | E83: 52.8
A84: Itajaí | B84: Biguaçu | C84: 156 | D84: 17.16 | E84: 54.912
A85: Itajaí | B85: São João Batista | C85: 156 | D85: 17.16 | E85: 54.912
A86: Itajaí | B86: Timbó | C86: 172 | D86: 18.92 | E86: 60.544
A87: Itajaí | B87: São José | C87: 184 | D87: 20.24 | E87: 64.768
A88: Itajaí | B88: São Francisco do Sul | C88: 194 | D88: 21.34 | E88: 68.288
A89: Itajaí | B89: Florianópolis | C89: 196 | D89: 21.56 | E89: 68.992
A90: Itajaí | B90: Joinville | C90: 196 | D90: 21.56 | E90: 68.992
A91: Itajaí | B91: Jaraguá do Sul | C91: 198 | D91: 21.78 | E91: 69.696
A92: Itajaí | B92: Palhoça | C92: 198 | D92: 21.78 | E92: 69.696
A93: Itajaí | B93: Tubarão | C93: 230 | D93: 25.3 | E93: 80.96
A94: Itajaí | B94: Santo Amaro | C94: 240 | D94: 26.4 | E94: 84.48
A95: Itajaí | B95: Rio do Sul | C95: 310 | D95: 34.1 | E95: 109.12
A96: Itajaí | B96: Garopaba | C96: 319 | D96: 35.09 | E96: 112.288
A97: Itajaí | B97: Trombudo Central | C97: 340 | D97: 37.4 | E97: 119.68
A98: Itajaí | B98: Curitiba | C98: 370 | D98: 40.7 | E98: 130.24
A99: Itajaí | B99: Joaçaba | C99: 400 | D99: 44 | E99: 140.8
A100: Itajaí | B100: Criciúma | C100: 496 | D100: =C100*0.11 -> 54.56 | E100: =D100*$B$1 -> 174.592
A101: Itajaí | B101: Lages | C101: 596 | D101: 65.56 | E101: 209.792
A102: Itajaí | B102: Umurarama | C102: 768 | D102: 84.48 | E102: 270.336
A103: Itajaí | B103: Concórdia | C103: 888 | D103: 97.68 | E103: 312.576
A104: Itajaí | B104: Chapecó | C104: 1016 | D104: 111.76 | E104: 357.632
A105: Itajaí | B105: Caxias do Sul | C105: 1018 | D105: 111.98 | E105: 358.336
A106: Itajaí | B106: São Leopoldo | C106: 1102 | D106: 121.22 | E106: 387.904
A107: Itajaí | B107: Porto Alegre | C107: 1129 | D107: 124.19 | E107: 397.408
A108: Itajaí | B108: Passo Fundo | C108: 1176 | D108: 129.36 | E108: 413.952
A109: Itajaí | B109: Araranguá/SP | C109: 1200 | D109: 132 | E109: 422.4
A110: Itajaí | B110: Campinas/SP | C110: 1200 | D110: 132 | E110: 422.4
A111: Itajaí | B111: Erechim | C111: 1200 | D111: 132 | E111: 422.4
A112: Itajaí | B112: São Paulo | C112: 1230 | D112: 135.3 | E112: 432.96
A113: Itapema | B113: Balneário Camboriú | C113: 38 | D113: 4.18 | E113: 13.376
A114: Itapema | B114: São José | C114: 104 | D114: 11.44 | E114: 36.608
A115: Itapema | B115: Piçarras | C115: 106 | D115: 11.66 | E115: 37.312
A116: Itapema | B116: Florianópolis | C116: 116 | D116: 12.76 | E116: 40.832
A117: Itapema | B117: Brusque | C117: 120 | D117: 13.2 | E117: 42.24
A118: Itapema | B118: Blumenau | C118: 194 | D118: 21.34 | E118: 68.288
A119: Navegantes | B119: Itapema | C119: 79 | D119: 8.69 | E119: 27.808
A120: Navegantes | B120: Penha | C120: 121 | D120: 13.31 | E120: 42.592
A121: Nova Trento | B121: Bombinhas | C121: 170 | D121: 18.7 | E121: 59.84
A122: Piçarras | B122: Brusque | C122: 118 | D122: 12.98 | E122: 41.536
A123: Piçarras | B123: Joinville | C123: 150 | D123: 16.5 | E123: 52.8
A124: Piçarras | B124: Blumenau | C124: 154 | D124: 16.94 | E124: 54.208
A125: Piçarras | B125: Florianópolis | C125: 242 | D125: 26.62 | E125: 85.184
A126: São José | B126: Gov. Celso Ramos | C126: 87 | D126: 9.57 | E126: 30.624
A127: São José | B127: Porto Belo | C127: 114 | D127: 12.54 | E127: 40.128
A128: São José | B128: Santo Amaro | C128: 126 | D128: 13.86 | E128: 44.352
A129: São José | B129: Angelina | C129: 134 | D129: 14.74 | E129: 47.168
A130: São José | B130: Criciúma | C130: 382 | D130: 42.02 | E130: 134.464
A131: Taquaras | B131: Santo Amaro | C131: 209 | D131: 22.99 | E131: 73.568
A132: Tijucas | B132: Balneário Camboriú | C132: 74 | D132: =C132*0.11 -> 8.14 | E132: =D132*$B$1 -> 26.048
A133: Tijucas | B133: São João Batista | C133: 76 | D133: 8.36 | E133: 26.752
A134: Tijucas | B134: Florianópolis | C134: 92 | D134: 10.12 | E134: 32.384
A135: Tijucas | B135: São José | C135: 108 | D135: 11.88 | E135: 38.016
A136: Tijucas | B136: Navegantes | C136: 110 | D136: 12.1 | E136: 38.72
A137: Tijucas | B137: Piçarras | C137: 126 | D137: 13.86 | E137: 44.352
A138: Tijucas | B138: Ilhota | C138: 140 | D138: 15.4 | E138: 49.28
A139: Tijucas | B139: Brusque | C139: 150 | D139: 16.5 | E139: 52.8
A140: Tijucas | B140: Brusque | C140: 152 | D140: 16.72 | E140: 53.504
A141: Tijucas | B141: Blumenau | C141: 194 | D141: 21.34 | E141: 68.288
A142: Tijucas | B142: Tubarão | C142: 292 | D142: 32.12 | E142: 102.784
A143: Videira | B143: Orleans | C143: 718 | D143: 78.98 | E143: 252.736

Sheet Valor Hora (hidden)
A1: TABELA DE VALORES HORA / AULA | B1: 2013 | C1: 2014 | D1: 2015 | E1: 2016 | F1: 2016 | G1: 2017 | H1: 2018 | I1: 2019 | J1: 2021
A2: Plano Antigo-Especialista-A1 | B2: 28.2266535 | C2: =(B2*6%)+B2 -> 29.92025271 | D2: =(C2*7.68%)+C2 -> 32.21812812 | E2: =(D2*5.86%)+D2 -> 34.10611043 | F2: =(E2*5.37%)+E2 -> 35.93760856 | G2: =(F2*5.21%)+F2 -> 37.80995796 | H2: =G2*1.0184 -> 38.50566119 | I2: =H2*1.0417 -> 40.11134726 | J2: 42.52
A3: Plano Antigo-Especialista-A2 | B3: 28.7736375 | C3: =(B3*6%)+B3 -> 30.50005575 | D3: =(C3*7.68%)+C3 -> 32.84246003 | E3: =(D3*5.86%)+D3 -> 34.76702819 | F3: =(E3*5.37%)+E3 -> 36.6340176 | G3: =(F3*5.21%)+F3 -> 38.54264992 | H3: =G3*1.0184 -> 39.25183468 | I3: =H3*1.0417 -> 40.88863618 | J3: 43.33
A4: Plano Antigo-Especialista-A3 | B4: 29.468763 | C4: 31.23688878 | D4: 33.63588184 | E4: 35.60694451 | F4: 37.51903743 | G4: 39.47377928 | H4: =G4*1.0184 -> 40.20009682 | I4: 41.87644086 | J4: 44.37
A5: Plano Antigo-Especialista-A4 | B5: 30.015747 | C5: 31.81669182 | D5: 34.26021375 | E5: 36.26786228 | F5: 38.21544648 | G5: 40.20647124 | H5: 40.94627031 | I5: 42.65372979 | J5: 45.21
A6: Plano Antigo-Especialista-A5 | B6: 30.59 | C6: 32.4254 | D6: 34.91567072 | E6: 36.96172902 | F6: 38.94657387 | G6: 40.97569037 | H6: 41.72964307 | I6: 43.46976919 | J6: 46.06
A7: Plano Antigo-Mestre-B1 | B7: 33.7192845 | C7: 35.74244157 | D7: 38.48746108 | E7: 40.7428263 | F7: 42.93071607 | G7: 45.16740638 | H7: 45.99848666 | I7: 47.91662355 | J7: 50.78
A8: Plano Antigo-Mestre-B2 | B8: 34.528365 | C8: 36.6000669 | D8: 39.41095204 | E8: 41.72043383 | F8: 43.96082112 | G8: 46.2511799 | H8: 47.10220161 | I8: 49.06636342 | J8: 52.01
A9: Plano Antigo-Mestre-B3 | B9: 35.4286095 | C9: 37.55432607 | D9: 40.43849831 | E9: 42.80819431 | F9: 45.10699435 | G9: 47.45706875 | H9: 48.33027882 | I9: 50.34565145 | J9: 53.35
A10: Plano Antigo-Mestre-B4 | B10: 36.3174585 | C10: 38.49650601 | D10: 41.45303767 | E10: 43.88218568 | F10: 46.23865905 | G10: 48.64769319 | H10: 49.54281074 | I10: 51.60874595 | J10: 54.69
A11: Plano Antigo-Mestre-B5 | B11: 37.1835165 | C11: 39.41452749 | D11: 42.4415632 | E11: 44.9286388 | F11: 47.34130671 | G11: 49.80778879 | H11: 50.7242521 | I11: 52.83945341 | J11: 56
A12: Plano Antigo-Doutor-C1 | B12: 40.932636 | C12: 43.38859416 | D12: 46.72083819 | E12: 49.45867931 | F12: 52.11461039 | G12: 54.82978159 | H12: 55.83864957 | I12: 58.16712126 | J12: 61.66
A13: Plano Antigo-Doutor-C2 | B13: 42.1063725 | C13: 44.63275485 | D13: 48.06055042 | E13: 50.87689868 | F13: 53.60898814 | G13: 56.40201642 | H13: 57.43981352 | I13: 59.83505374 | J13: 63.39
A14: Plano Antigo-Doutor-C3 | B14: 43.416855 | C14: 46.0218663 | D14: 49.55634563 | E14: 52.46034749 | F14: 55.27746815 | G14: 58.15742424 | H14: 59.22752084 | I14: 61.69730846 | J14: 65.38
A15: Plano Antigo-Doutor-C4 | B15: 44.7045465 | C15: 47.38681929 | D15: 51.02612701 | E15: 54.01625805 | F15: 56.91693111 | G15: 59.88230322 | H15: 60.9841376 | I15: 63.52717614 | J15: 67.3
A16: Plano Antigo-Especial-1 | B16: 49.182978 | C16: 52.13395668 | D16: 56.13784455 | E16: 59.42752224 | F16: 62.61878019 | G16: 65.88121864 | H16: 67.09343306 | I16: 69.89122922 | J16: 74.06
A17: Plano Antigo-Especial-2 | B17: 54.060252 | C17: 57.30386712 | D17: 61.70480411 | E17: 65.32070564 | F17: 68.82842753 | G17: 72.4143886 | H17: 73.74681335 | I17: 76.82205547 | J17: 81.43
A18: Novo Plano-Prof.Colaborador-1 | B18: 26.8364025 | C18: 28.44658665 | D18: 30.6312845 | E18: 32.42627778 | F18: 34.16756889 | G18: 35.94769923 | H18: 36.6091369 | I18: 38.13573791 | J18: 40.44
A19: Novo Plano-Prof.Colaborador-2 | B19: 30.6652905 | C19: 32.50520793 | D19: 35.0016079 | E19: 37.05270212 | F19: 39.04243223 | G19: 41.07654294 | H19: 41.83235134 | I19: 43.57676039 | J19: 46.17
A20: Novo Plano-Prof.Colaborador-3 | B20: 35.7932655 | C20: 37.94086143 | D20: 40.85471959 | E20: 43.24880616 | F20: 45.57126705 | G20: 47.94553006 | H20: 48.82772781 | I20: 50.86384406 | J20: 53.9
A21: Novo Plano-Prof.Colaborador-4 | B21: 48.5562255 | C21: 51.46959903 | D21: 55.42246424 | E21: 58.67022064 | F21: 61.82081149 | G21: 65.04167577 | H21: 66.2384426 | I21: 69.00058566 | J21: 73.12
A22: Novo Plano-Professor I-Ingr. | B22: 28.739451 | C22: 30.46381806 | D22: 32.80343929 | E22: 34.72572083 | F22: 36.59049204 | G22: 38.49685667 | H22: 39.20519884 | I22: 40.84005563 | J22: 43.26
A23: Novo Plano-Professor I-A | B23: 29.40039 | C23: 31.1644134 | D23: 33.55784035 | E23: 35.52432979 | F23: 37.4319863 | G23: 39.38219279 | H23: 40.10682514 | I23: 41.77927975 | J23: 44.27
A24: Novo Plano-Professor I-B | B24: 30.0271425 | C24: 31.82877105 | D24: 34.27322067 | E24: 36.2816314 | F24: 38.229955 | G24: 40.22173566 | H24: 40.9618156 | I24: 42.66992331 | J24: 45.22
A25: Novo Plano-Professor I-C | B25: 30.6652905 | C25: 32.50520793 | D25: 35.0016079 | E25: 37.05270212 | F25: 39.04243223 | G25: 41.07654294 | H25: 41.83235134 | I25: 43.57676039 | J25: 46.17
A26: Novo Plano-Professor I-D | B26: 31.3034385 | C26: 33.18164481 | D26: 35.72999513 | E26: 37.82377285 | F26: 39.85490945 | G26: 41.93135023 | H26: 42.70288707 | I26: 44.48359747 | J26: 47.11
A27: Novo Plano-Professor II-Ingr. | B27: 31.9415865 | C27: 33.85808169 | D27: 36.45838236 | E27: 38.59484357 | F27: 40.66738667 | G27: 42.78615752 | H27: 43.57342281 | I27: 45.39043455 | J27: 48.11
A28: Novo Plano-Professor II-A | B28: 32.5797345 | C28: 34.53451857 | D28: 37.1867696 | E28: 39.36591429 | F28: 41.47986389 | G28: 43.6409648 | H28: 44.44395855 | I28: 46.29727162 | J28: 49.05
A29: Novo Plano-Professor II-B | B29: 33.2178825 | C29: 35.21095545 | D29: 37.91515683 | E29: 40.13698502 | F29: 42.29234111 | G29: 44.49577209 | H29: 45.31449429 | I29: 47.2041087 | J29: 50.04
A30: Novo Plano-Professor II-C | B30: 33.844635 | C30: 35.8753131 | D30: 38.63053715 | E30: 40.89428662 | F30: 43.09030981 | G30: 45.33531496 | H30: 46.16948475 | I30: 48.09475227 | J30: 50.95
A31: Novo Plano-Professor II-D | B31: 34.5169695 | C31: 36.58798767 | D31: 39.39794512 | E31: 41.70666471 | F31: 43.9463126 | G31: 46.23591549 | H31: 47.08665633 | I31: 49.0501699 | J31: 51.96
A32: Novo Plano-Professor III-Ingr. | B32: 37.7077095 | C32: 39.97017207 | D32: 43.03988128 | E32: 45.56201833 | F32: 48.00869871 | G32: 50.50995192 | H32: 51.43933503 | I32: 53.5843553 | J32: 56.8
A33: Novo Plano-Professor III-A | B33: 40.2603015 | C33: 42.67591959 | D33: 45.95343021 | E33: 48.64630123 | F33: 51.2586076 | G33: 53.92918106 | H33: 54.92147799 | I33: 57.21170362 | J33: 60.6
A34: Novo Plano-Professor III-B | B34: 42.8128935 | C34: 45.38166711 | D34: 48.86697914 | E34: 51.73058412 | F34: 54.50851649 | G34: 57.3484102 | H34: 58.40362095 | I34: 60.83905194 | J34: 64.46
A35: Novo Plano-Professor III-C | B35: 45.3654855 | C35: 48.08741463 | D35: 51.78052807 | E35: 54.81486702 | F35: 57.75842538 | G35: 60.76763934 | H35: 61.8857639 | I35: 64.46640026 | J35: 68.32
A36: Novo Plano-Professor III-D | B36: 47.929473 | C36: 50.80524138 | D36: 54.70708392 | E36: 57.91291904 | F36: 61.02284279 | G36: 64.2021329 | H36: 65.38345214 | I36: 68.1099421 | J36: 72.2
A37: Novo Plano-Professor IV-Ingr. | B37: 50.482065 | C37: 53.5109889 | D37: 57.62063285 | E37: 60.99720193 | F37: 64.27275168 | G37: 67.62136204 | H37: 68.8655951 | I37: 71.73729042 | J37: 76
A38: Novo Plano-Professor IV-A | B38: 53.034657 | C38: 56.21673642 | D38: 60.53418178 | E38: 64.08148483 | F38: 67.52266056 | G38: 71.04059118 | H38: 72.34773806 | I38: 75.36463873 | J38: 80.13
A39: Novo Plano-Professor IV-B | B39: 55.5758535 | C39: 58.91040471 | D39: 63.43472379 | E39: 67.15199861 | F39: 70.75806093 | G39: 74.44455591 | H39: 75.81433573 | I39: 78.97579353 | J39: 83.7
A40: Novo Plano-Professor IV-C | B40: 58.1512365 | C40: 61.64031069 | D40: 66.37428655 | E40: 70.26381974 | F40: 74.03698686 | G40: 77.89431388 | H40: 79.32756925 | I40: 82.63552889 | J40: 87.55
A41: Novo Plano-Professor IV-D | B41: 60.7038285 | C41: 64.34605821 | D41: 69.28783548 | E41: 73.34810264 | F41: 77.28689575 | G41: 81.31354302 | H41: =G41*1.0184 -> 82.80971221 | I41: 86.26287721 | J41: 91.43

Sheet Cálculo PF e PJ (hidden)
A1: Pessoa Física | B1: PF | G1: Docentes internos | K1: Coordenadores
A2: Nome | B2: Valor Líquido | C2: 25% (INSS+ISS) | D2: Valor bruto | G2: Nome | H2: Valor líquido | I2: Valor Bruto | K2: Nome | L2: Valor líquido | M2: Valor Bruto
A3: ='Custos Pessoal'!#REF! ->  | B3: ='Custos Pessoal'!H42 -> 0 | C3: =D3-B3 -> 0 | D3: =B3/75% -> 0 | G3: ='Custos Pessoal'!A18 -> 0 | H3: ='Custos Pessoal'!H18 -> 0 | I3: =H3*1.40944444 -> 0 | K3: ='Custos Pessoal'!A60 -> 0 | L3: ='Custos Pessoal'!H60 -> 0 | M3: =L3*1.40944444 -> 0
A4: ='Custos Pessoal'!#REF! ->  | B4: ='Custos Pessoal'!H43 -> 0 | C4: =D4-B4 -> 0 | D4: =B4/75% -> 0 | G4: ='Custos Pessoal'!A19 -> 0 | H4: ='Custos Pessoal'!H19 -> 0 | I4: =H4*1.40944444 -> 0 | K4: ='Custos Pessoal'!A61 -> 0 | L4: ='Custos Pessoal'!H61 -> 0 | M4: =L4*1.40944444 -> 0
A5: ='Custos Pessoal'!#REF! ->  | B5: ='Custos Pessoal'!H44 -> 0 | C5: =D5-B5 -> 0 | D5: =B5/75% -> 0 | G5: ='Custos Pessoal'!A20 -> 0 | H5: ='Custos Pessoal'!H20 -> 0 | I5: 0 | L5: =SUM(L3:L4) -> 0 | M5: =SUM(M3:M4) -> 0
A6: ='Custos Pessoal'!#REF! ->  | B6: ='Custos Pessoal'!H45 -> 0 | C6: =D6-B6 -> 0 | D6: =B6/75% -> 0 | G6: ='Custos Pessoal'!A21 -> 0 | H6: ='Custos Pessoal'!H21 -> 0 | I6: 0
B7: ='Custos Pessoal'!H46 -> 0 | C7: =D7-B7 -> 0 | D7: =B7/75% -> 0 | G7: ='Custos Pessoal'!A22 -> 0 | H7: ='Custos Pessoal'!H22 -> 0 | I7: 0
B8: ='Custos Pessoal'!H47 -> 0 | C8: 0 | D8: 0 | G8: ='Custos Pessoal'!A23 -> 0 | H8: ='Custos Pessoal'!H23 -> 0 | I8: 0
B9: =SUM(B3:B8) -> 0 | C9: =SUM(C3:C8) -> 0 | D9: =SUM(D3:D8) -> 0 | G9: ='Custos Pessoal'!A24 -> 0 | H9: ='Custos Pessoal'!H24 -> 0 | I9: 0
G10: ='Custos Pessoal'!A25 -> 0 | H10: ='Custos Pessoal'!H25 -> 0 | I10: 0
G11: ='Custos Pessoal'!A26 -> 0 | H11: ='Custos Pessoal'!H26 -> 0 | I11: 0
G12: ='Custos Pessoal'!A27 -> 0 | H12: ='Custos Pessoal'!H27 -> 0 | I12: 0
G13: ='Custos Pessoal'!A28 -> 0 | H13: ='Custos Pessoal'!H28 -> 0 | I13: 0
G14: ='Custos Pessoal'!A29 -> 0 | H14: ='Custos Pessoal'!H29 -> 0 | I14: 0
G15: ='Custos Pessoal'!A30 -> 0 | H15: ='Custos Pessoal'!H30 -> 0 | I15: 0
H20: =SUM(H3:H15) -> 0 | I20: =SUM(I3:I15) -> 0
G23: Funcionários
G24: Nome | H24: Valor líquido | I24: Valor Bruto
G25: ='Custos Pessoal'!A34 -> 0 | H25: ='Custos Pessoal'!H34 -> 0 | I25: =H25*1.40944444 -> 0
G26: ='Custos Pessoal'!A35 -> 0 | H26: ='Custos Pessoal'!H35 -> 0 | I26: =H26*1.40944444 -> 0
G27: ='Custos Pessoal'!A36 -> 0 | H27: ='Custos Pessoal'!H36 -> 0 | I27: 0
G28: ='Custos Pessoal'!A37 -> 0 | H28: ='Custos Pessoal'!H37 -> 0 | I28: 0
G29: ='Custos Pessoal'!A38 -> 0 | H29: ='Custos Pessoal'!H38 -> 0 | I29: 0
H30: =SUM(H25:H29) -> 0 | I30: =SUM(I25:I29) -> 0

Sheet Espaços físicos (hidden)
A1: Cód. | B1: Espaço | C1: Campus | D1: Localização | E1: Capacidade - lugares | F1: R$/Hora
A2: 101 | B2: Auditório | C2: B. Camboriú | D2: Bl. 4 | E2: 200 | F2: 33
A3: 102 | B3: Auditório | C3: Biguaçu | D3: Bl. 2 | E3: 314 | F3: 33 | G3: 27
A4: 103 | B4: Auditório | C4: São José | E4: 376 | F4: 26
A5: 104 | B5: Auditório | C5: Kobrasol | E5: 288 | F5: 77 | G5: 83
A6: 105 | B6: Auditório | C6: Tijucas | E6: 150 | F6: 28
A7: 106 | B7: Auditório - Direito | C7: Itajaí | D7: D1 | E7: 350 | F7: 27
A8: 107 | B8: Auditório III - Enfermagem/Psicologia | C8: Itajaí | D8: F4 | E8: 133 | F8: 16
A9: 108 | B9: Auditório IV - Farmácia | C9: Itajaí | D9: E1 | E9: 220 | F9: 22
A10: 109 | B10: Auditório I - Medicina | C10: Itajaí | D10: F4 | E10: 214 | F10: 22
A11: 110 | B11: Auditório II - Medicina | C11: Itajaí | D11: F4 | E11: 124 | F11: 16
A12: 111 | B12: Auditório | C12: Piçarras | E12: 150 | F12: 22
A13: 112 | B13: Auditório II | C13: B. Camboriú | D13: Bl. 7 | E13: 516 | F13: 100 | G13: 109
A14: 113 | B14: Auditório - Centro de Vivência | C14: Itajaí | E14: 60 | F14: 14
A15: 114 | B15: Estúdio de áudio - Valor hora | F15: 98 | G15: 97
A16: 115 | B16: Entrega de panfletos | F16: 648 | G16: 8
A17: 116 | B17: Foyer | C17: B. Camboriú | D17: Bl. 7 | F17: 810 | G17: 57
A18: 117 | B18: Laboratório de informática | F18: 121.5 | G18: 39
A19: 118 | B19: Laboratório TOCE (meio período) | C19: Itajaí | D19: F6 | F19: 33
A20: 119 | B20: Laboratório Cozinha Pedagógica | C20: B. Camboriú | F20: 51
A21: 120 | B21: Laboratório Botânica (Cttmar) | C21: Itajaí | D21: E2 | F21: 16
A22: 121 | B22: Sala de aula | F22: 8
A23: 122 | B23: Sala de vídeo conferência (dias de semana com acompanhamento de funcionário da Univali) | F23: 12
A24: 123 | B24: Sala de vídeo conferência (final de semana com acompanhamento de funcionário da Univali) | F24: 39 | G24: 16
A25: 124 | B25: Teatro Adelaide Konder | C25: Itajaí | D25: C | E25: 708 | F25: 231
A26: 125 | B26: Quadras - Valor hora | F26: 39 | G26: 43
A27: 126 | B27: Restaurante Bistrô do Sabor | C27: Itajaí | F27: 68
